fUSD/lending_fUSD_20260521
["ID","MTS","AMOUNT","RATE_DAILY","PERIOD"]
[422774617,1779378640000,-1238.75392083,0.0001789,2]
[422774614,1779378640000,-1019.70474168,0.00017808,2]
[422774621,1779378640000,-4002.36523709,0.000179,2]
[422774632,1779378640000,-17343.58269409,0.000179,2]
[422774634,1779378640000,-17343.58269409,0.000179,2]
[422774649,1779378640000,-3027.413923,0.000179,2]
[422774636,1779378640000,-236.750328,0.000179,2]
[422774638,1779378640000,-236.750328,0.000179,2]
[422774647,1779378640000,-3027.413923,0.000179,2]
[422774640,1779378640000,-236.750328,0.000179,2]
[422774651,1779378640000,-3027.413923,0.000179,2]
[422774627,1779378640000,-17343.58269409,0.000179,2]
[422774645,1779378640000,-3027.413923,0.000179,2]
[422774655,1779378640000,-810.885163,0.000179,2]
[422774653,1779378640000,-810.885163,0.000179,2]
[422774657,1779378640000,-810.885163,0.000179,2]
[422774661,1779378640000,-214.0,0.00017945,2]
[422774659,1779378640000,-810.885163,0.000179,2]
[422774664,1779378640000,-151.0,0.00017997,2]
[422774674,1779378640000,-151.0,0.00018,2]
[422774676,1779378640000,-350.0,0.00018,2]
[422774666,1779378640000,-110816.57341083,0.00018,2]
[422774672,1779378640000,-1309.77,0.00018,2]
[422774670,1779378640000,-1547.02250132,0.00018,2]
[422774557,1779378640000,-1019.70474168,0.00017808,2]
[422774643,1779378640000,-236.750328,0.000179,2]
[422774625,1779378640000,-4002.36523709,0.000179,2]
[422774668,1779378640000,-1206.9889289,0.00018,2]
[422774612,1779378640000,-1019.70474168,0.00017808,2]
[422774623,1779378640000,-4002.36523709,0.000179,2]
[422774551,1779378640000,-1019.70474168,0.00017808,2]
[422774563,1779378640000,-1019.70474168,0.00017808,2]
[422774565,1779378640000,-1019.70474168,0.00017808,2]
[422774574,1779378640000,-1019.70474168,0.00017808,2]
[422774576,1779378640000,-1019.70474168,0.00017808,2]
[422774578,1779378640000,-1019.70474168,0.00017808,2]
[422774580,1779378640000,-1019.70474168,0.00017808,2]
[422774567,1779378640000,-1019.70474168,0.00017808,2]
[422774583,1779378640000,-1019.70474168,0.00017808,2]
[422774569,1779378640000,-1019.70474168,0.00017808,2]
[422774571,1779378640000,-1019.70474168,0.00017808,2]
[422774585,1779378640000,-1019.70474168,0.00017808,2]
[422774561,1779378640000,-1019.70474168,0.00017808,2]
[422774589,1779378640000,-1019.70474168,0.00017808,2]
[422774587,1779378640000,-1019.70474168,0.00017808,2]
[422774610,1779378640000,-1019.70474168,0.00017808,2]
[422774608,1779378640000,-1019.70474168,0.00017808,2]
[422774594,1779378640000,-1019.70474168,0.00017808,2]
[422774593,1779378640000,-1019.70474168,0.00017808,2]
[422774604,1779378640000,-1019.70474168,0.00017808,2]
[422774598,1779378640000,-1019.70474168,0.00017808,2]
[422774606,1779378640000,-1019.70474168,0.00017808,2]
[422774595,1779378640000,-1019.70474168,0.00017808,2]
[422774603,1779378640000,-1019.70474168,0.00017808,2]
[422774602,1779378640000,-1019.70474168,0.00017808,2]
[422774591,1779378640000,-1019.70474168,0.00017808,2]
[422774600,1779378640000,-1019.70474168,0.00017808,2]
[422774760,1779378641000,-3027.413923,0.00019,2]
[422774758,1779378641000,-3027.413923,0.00019,2]
[422774751,1779378641000,-236.750328,0.00019,2]
[422774747,1779378641000,-236.750328,0.00019,2]
[422774755,1779378641000,-3027.413923,0.00019,2]
[422774743,1779378641000,-135152.71062754,0.00019,2]
[422774745,1779378641000,-236.750328,0.00019,2]
[422774753,1779378641000,-3027.413923,0.00019,2]
[422774735,1779378641000,-151.0,0.00018997,2]
[422774762,1779378641000,-810.885163,0.00019,2]
[422774741,1779378641000,-3177.63689714,0.00019,2]
[422774775,1779378641000,-160.93281423,0.00019178,7]
[422774766,1779378641000,-810.885163,0.00019,2]
[422774764,1779378641000,-810.885163,0.00019,2]
[422774768,1779378641000,-810.885163,0.00019,2]
[422774770,1779378641000,-364.1970986,0.0001901,7]
[422774781,1779378641000,-151.0,0.00019178,2]
[422774773,1779378641000,-3000.0,0.00019178,2]
[422774790,1779378641000,-151.0,0.00019178,2]
[422774789,1779378641000,-151.0,0.00019178,2]
[422774777,1779378641000,-151.0,0.00019178,2]
[422774787,1779378641000,-151.0,0.00019178,2]
[422774724,1779378641000,-150.0,0.00018383,2]
[422774785,1779378641000,-151.0,0.00019178,2]
[422774749,1779378641000,-236.750328,0.00019,2]
[422774739,1779378641000,-479.82443964,0.00019,2]
[422774702,1779378641000,-424.933373,0.00018,2]
[422774733,1779378641000,-150.0,0.00018956,2]
[422774779,1779378641000,-151.0,0.00019178,2]
[422774678,1779378641000,-405.193774,0.00018,2]
[422774681,1779378641000,-405.193774,0.00018,2]
[422774683,1779378641000,-405.193774,0.00018,2]
[422774685,1779378641000,-405.193774,0.00018,2]
[422774688,1779378641000,-151.0,0.00018,2]
[422774690,1779378641000,-352.828046,0.00018,2]
[422774700,1779378641000,-424.933373,0.00018,2]
[422774704,1779378641000,-424.933373,0.00018,2]
[422774694,1779378641000,-352.828046,0.00018,2]
[422774696,1779378641000,-352.828046,0.00018,2]
[422774692,1779378641000,-352.828046,0.00018,2]
[422774698,1779378641000,-424.933373,0.00018,2]
[422774706,1779378641000,-151.0,0.00018,2]
[422774709,1779378641000,-1801.17513169,0.000181,2]
[422774711,1779378641000,-2500.0,0.000182,2]
[422774715,1779378641000,-250.0,0.000182,2]
[422774713,1779378641000,-2500.0,0.000182,2]
[422774717,1779378641000,-2100.0,0.000182,30]
[422774725,1779378641000,-3193.7,0.0001841,2]
[422774727,1779378641000,-180.0,0.0001863,2]
[422774729,1779378641000,-1339.41,0.00018679,2]
[422774719,1779378641000,-736.0,0.00018234,2]
[422774731,1779378641000,-823.0,0.00018911,2]
[422774722,1779378641000,-59290.42,0.00018356,2]
[422774738,1779378641000,-5233.78335547,0.00019,2]
[422774783,1779378641000,-151.0,0.00019178,2]
[422774792,1779378641000,-326.863846,0.00019178,2]
[422774917,1779378641000,-13095.29618348,0.0002,2]
[422774853,1779378641000,-424.933373,0.000193,2]
[422774864,1779378641000,-1593.21485106,0.000196,2]
[422774845,1779378641000,-352.828046,0.000193,2]
[422774859,1779378641000,-4541.98233366,0.000194,2]
[422774855,1779378641000,-288.867224,0.000193,2]
[422774861,1779378641000,-597.90954568,0.000194,2]
[422774866,1779378641000,-4541.98233366,0.000196,2]
[422774857,1779378641000,-1593.21485106,0.000194,2]
[422774868,1779378641000,-597.90954568,0.000196,2]
[422774870,1779378641000,-309.79,0.000196,7]
[422774875,1779378641000,-1593.21485106,0.000198,2]
[422774851,1779378641000,-424.933373,0.000193,2]
[422774888,1779378641000,-26781.47155574,0.0002,2]
[422774879,1779378641000,-597.90954568,0.000198,2]
[422774880,1779378641000,-1554.0205344,0.0002,2]
[422774886,1779378641000,-3950.0,0.0002,2]
[422774882,1779378641000,-178.81613084,0.0002,2]
[422774884,1779378641000,-25927.30408052,0.0002,2]
[422774890,1779378641000,-1311.94441645,0.0002,2]
[422774907,1779378641000,-506.98432054,0.0002,10]
[422774910,1779378641000,-200.0,0.0002,2]
[422774912,1779378641000,-1058.99988934,0.0002,2]
[422774914,1779378641000,-52340.18570766,0.0002,2]
[422774791,1779378641000,-326.863846,0.00019178,2]
[422774877,1779378641000,-4541.98233366,0.000198,2]
[422774849,1779378641000,-424.933373,0.000193,2]
[422774872,1779378641000,-1252.0,0.00019636,2]
[422774842,1779378641000,-352.828046,0.000193,2]
[422774847,1779378641000,-424.933373,0.000193,2]
[422774795,1779378641000,-326.863846,0.00019178,2]
[422774805,1779378641000,-326.863846,0.00019178,2]
[422774806,1779378641000,-326.863846,0.00019178,2]
[422774808,1779378641000,-326.863846,0.00019178,2]
[422774811,1779378641000,-326.863846,0.00019178,2]
[422774801,1779378641000,-326.863846,0.00019178,2]
[422774799,1779378641000,-326.863846,0.00019178,2]
[422774797,1779378641000,-326.863846,0.00019178,2]
[422774813,1779378641000,-326.863846,0.00019178,2]
[422774803,1779378641000,-326.863846,0.00019178,2]
[422774815,1779378641000,-326.863846,0.00019178,2]
[422774819,1779378641000,-326.863846,0.00019178,2]
[422774793,1779378641000,-326.863846,0.00019178,2]
[422774829,1779378641000,-151.0,0.000193,2]
[422774821,1779378641000,-504.73,0.00019178,2]
[422774833,1779378641000,-405.193774,0.000193,2]
[422774836,1779378641000,-405.193768,0.000193,2]
[422774823,1779378641000,-17967.48,0.000193,2]
[422774834,1779378641000,-405.193774,0.000193,2]
[422774830,1779378641000,-405.193774,0.000193,2]
[422774838,1779378641000,-352.828046,0.000193,2]
[422774840,1779378641000,-352.828046,0.000193,2]
[422774827,1779378641000,-151.0,0.000193,2]
[422774825,1779378641000,-647.0,0.000193,2]
[422774817,1779378641000,-326.863846,0.00019178,2]
[422775004,1779378642000,-1339.41,0.00020377,2]
[422774999,1779378642000,-4541.98233366,0.000202,2]
[422775002,1779378642000,-597.90954568,0.000202,2]
[422774995,1779378642000,-1309.77,0.000202,2]
[422774985,1779378642000,-1177.0,0.0002,2]
[422774993,1779378642000,-528.27069339,0.0002012,2]
[422774990,1779378642000,-2000.0,0.0002,7]
[422774988,1779378642000,-1025.0,0.0002,2]
[422774983,1779378642000,-499.0,0.0002,2]
[422775007,1779378642000,-3193.7,0.00020381,2]
[422774997,1779378642000,-1593.21485106,0.000202,2]
[422775009,1779378642000,-4541.98233366,0.000204,2]
[422775024,1779378642000,-810.885172,0.000206,2]
[422775015,1779378642000,-4541.98233366,0.000206,2]
[422775017,1779378642000,-810.885163,0.000206,2]
[422775019,1779378642000,-810.885163,0.000206,2]
[422775021,1779378642000,-810.885163,0.000206,2]
[422775011,1779378642000,-2783.05,0.00020548,2]
[422775026,1779378642000,-169.89,0.00020639,2]
[422775028,1779378642000,-150.0,0.00020674,2]
[422775030,1779378642000,-281.20309845,0.00020697,2]
[422775043,1779378642000,-326.863846,0.000207,2]
[422775032,1779378642000,-22972.90714407,0.000207,2]
[422775048,1779378642000,-326.863843,0.000207,2]
[422775013,1779378642000,-150.0,0.0002058,2]
[422774978,1779378642000,-200.0,0.0002,2]
[422775034,1779378642000,-326.863846,0.000207,2]
[422774976,1779378642000,-200.0,0.0002,2]
[422774919,1779378642000,-163.12890048,0.0002,14]
[422774922,1779378642000,-152.0,0.0002,2]
[422774927,1779378642000,-1593.21485106,0.0002,2]
[422774924,1779378642000,-5882.7583154,0.0002,2]
[422774929,1779378642000,-4541.98233366,0.0002,2]
[422774931,1779378642000,-597.90954568,0.0002,2]
[422774937,1779378642000,-151.0,0.0002,2]
[422774936,1779378642000,-621.0,0.0002,2]
[422774944,1779378642000,-176.0,0.0002,2]
[422774933,1779378642000,-155.0,0.0002,2]
[422774948,1779378642000,-400.0,0.0002,2]
[422774940,1779378642000,-431.0,0.0002,2]
[422774950,1779378642000,-175.96521261,0.0002,2]
[422774942,1779378642000,-481.0,0.0002,2]
[422774946,1779378642000,-4957.0,0.0002,2]
[422774953,1779378642000,-175.96521261,0.0002,2]
[422774955,1779378642000,-175.96521261,0.0002,2]
[422774957,1779378642000,-175.96521261,0.0002,2]
[422774959,1779378642000,-175.96521262,0.0002,2]
[422774963,1779378642000,-200.0,0.0002,2]
[422774961,1779378642000,-200.0,0.0002,2]
[422774966,1779378642000,-200.0,0.0002,2]
[422774972,1779378642000,-200.0,0.0002,2]
[422774968,1779378642000,-200.0,0.0002,2]
[422774970,1779378642000,-200.0,0.0002,2]
[422774981,1779378642000,-309.36316626,0.0002,2]
[422775050,1779378642000,-236.750336,0.000207,2]
[422775163,1779378642000,-695.39793187,0.00021572,2]
[422775039,1779378642000,-326.863846,0.000207,2]
[422775106,1779378642000,-424.933373,0.00021,2]
[422775117,1779378642000,-3545.0,0.00021298,2]
[422775121,1779378642000,-1271.0,0.00021298,2]
[422775119,1779378642000,-625.0,0.00021298,2]
[422775109,1779378642000,-424.933369,0.00021,2]
[422775124,1779378642000,-171.0,0.00021298,2]
[422775113,1779378642000,-4541.98233366,0.000212,2]
[422775111,1779378642000,-719.0,0.00021154,2]
[422775130,1779378642000,-6467.69,0.0002137,2]
[422775132,1779378642000,-58363.82647151,0.000215,2]
[422775126,1779378642000,-418.0,0.00021298,2]
[422775115,1779378642000,-1354.0,0.00021298,2]
[422775134,1779378642000,-225.26005547,0.000215,2]
[422775152,1779378642000,-578.20924308,0.00021572,2]
[422775150,1779378642000,-151.0,0.00021572,2]
[422775148,1779378642000,-151.0,0.00021572,2]
[422775141,1779378642000,-572.17064041,0.000215,22]
[422775138,1779378642000,-864.94870232,0.000215,22]
[422775159,1779378642000,-151.0,0.00021572,2]
[422775155,1779378642000,-1377.42282658,0.00021572,2]
[422775143,1779378642000,-151.0,0.00021572,2]
[422775157,1779378642000,-151.0,0.00021572,2]
[422775161,1779378642000,-151.0,0.00021572,2]
[422775045,1779378642000,-236.750328,0.000207,2]
[422775145,1779378642000,-151.0,0.00021572,2]
[422775102,1779378642000,-424.933373,0.00021,2]
[422775128,1779378642000,-3634.0,0.00021298,2]
[422775104,1779378642000,-424.933373,0.00021,2]
[422775037,1779378642000,-236.750328,0.000207,2]
[422775099,1779378642000,-1177.0,0.00021,2]
[422775041,1779378642000,-236.750328,0.000207,2]
[422775052,1779378642000,-3027.413923,0.000207,2]
[422775056,1779378642000,-3027.413923,0.000207,2]
[422775054,1779378642000,-3027.413923,0.000207,2]
[422775058,1779378642000,-3027.413927,0.000207,2]
[422775060,1779378642000,-521.0,0.00020709,2]
[422775065,1779378642000,-1706.10956049,0.0002086,21]
[422775062,1779378642000,-4541.98233366,0.000208,2]
[422775075,1779378642000,-300.0,0.00021,2]
[422775077,1779378642000,-4541.98233366,0.00021,2]
[422775071,1779378642000,-1209.59715237,0.00021,2]
[422775069,1779378642000,-647.0,0.00021,2]
[422775067,1779378642000,-17967.48,0.00021,2]
[422775095,1779378642000,-778.4377492,0.00021,2]
[422775093,1779378642000,-176.0,0.00021,2]
[422775088,1779378642000,-431.0,0.00021,2]
[422775091,1779378642000,-481.0,0.00021,2]
[422775086,1779378642000,-151.0,0.00021,2]
[422775097,1779378642000,-499.0,0.00021,2]
[422775082,1779378642000,-12715.5943189,0.00021,2]
[422775084,1779378642000,-155.0,0.00021,2]
[422775079,1779378642000,-508.05,0.00021,2]
[422775073,1779378642000,-199.63669687,0.00021,2]
[422775085,1779378642000,-621.0,0.00021,2]
[422775251,1779378643000,-201.68822076,0.00022,3]
[422775252,1779378643000,-2000.0,0.00022,7]
[422775250,1779378643000,-1177.0,0.00022,2]
[422775254,1779378643000,-243.78396283,0.0002211,2]
[422775248,1779378643000,-499.0,0.00022,2]
[422775246,1779378643000,-450.0,0.00022,2]
[422775243,1779378643000,-176.0,0.00022,2]
[422775238,1779378643000,-431.0,0.00022,2]
[422775233,1779378643000,-621.0,0.00022,2]
[422775236,1779378643000,-157.40230589,0.00022,2]
[422775255,1779378643000,-1428.38747117,0.0002212,2]
[422775241,1779378643000,-481.0,0.00022,2]
[422775257,1779378643000,-1122.1564534,0.00022287,24]
[422775281,1779378643000,-2000.0,0.0002282,2]
[422775259,1779378643000,-3193.7,0.00022353,2]
[422775269,1779378643000,-36027.59789514,0.000225,2]
[422775277,1779378643000,-2000.0,0.000228,2]
[422775275,1779378643000,-531.12782183,0.0002271,2]
[422775273,1779378643000,-1481.2378076,0.00022668,2]
[422775271,1779378643000,-3659.06043895,0.000226,2]
[422775265,1779378643000,-595.61,0.00022466,2]
[422775267,1779378643000,-318.79,0.00022466,2]
[422775261,1779378643000,-1602.54,0.00022466,2]
[422775263,1779378643000,-2055.35,0.00022466,2]
[422775283,1779378643000,-2868.461264,0.0002283,2]
[422775224,1779378643000,-160.0,0.00022,2]
[422775253,1779378643000,-1675.33333363,0.00022046,24]
[422775231,1779378643000,-155.0,0.00022,2]
[422775169,1779378643000,-151.0,0.00021572,2]
[422775228,1779378643000,-53696.83522234,0.00022,2]
[422775285,1779378643000,-166.177,0.00022968,2]
[422775165,1779378643000,-151.0,0.00021572,2]
[422775167,1779378643000,-151.0,0.00021572,2]
[422775171,1779378643000,-151.0,0.00021572,2]
[422775178,1779378643000,-151.0,0.00021572,2]
[422775176,1779378643000,-151.0,0.00021572,2]
[422775180,1779378643000,-151.0,0.00021572,2]
[422775174,1779378643000,-151.0,0.00021572,2]
[422775184,1779378643000,-151.0,0.00021572,2]
[422775182,1779378643000,-151.0,0.00021572,2]
[422775186,1779378643000,-151.0,0.00021572,2]
[422775189,1779378643000,-151.0,0.00021572,2]
[422775191,1779378643000,-151.0,0.00021572,2]
[422775193,1779378643000,-1005.15,0.00021918,2]
[422775195,1779378643000,-3077.12,0.00021918,2]
[422775204,1779378643000,-151.0,0.00021918,2]
[422775208,1779378643000,-157.068754,0.00021918,2]
[422775201,1779378643000,-151.0,0.00021918,2]
[422775197,1779378643000,-5000.0,0.00021918,2]
[422775199,1779378643000,-151.0,0.00021918,2]
[422775206,1779378643000,-151.0,0.00021918,2]
[422775210,1779378643000,-151.0,0.00021918,2]
[422775212,1779378643000,-151.0,0.00021918,2]
[422775214,1779378643000,-151.0,0.00021918,2]
[422775217,1779378643000,-151.0,0.00021918,2]
[422775226,1779378643000,-300.0,0.00022,2]
[422775221,1779378643000,-163.64,0.00021918,2]
[422775219,1779378643000,-266.703901,0.00021918,2]
[422775295,1779378643000,-155.0,0.00023,2]
[422775279,1779378643000,-2000.0,0.0002281,2]
[422775289,1779378643000,-185.0,0.00022968,2]
[422775353,1779378643000,-900.0,0.00023602,2]
[422775355,1779378643000,-900.0,0.00023602,2]
[422775360,1779378643000,-426.0,0.00023602,2]
[422775375,1779378643000,-196338.0,0.000237,2]
[422775370,1779378643000,-2000.0,0.00023659,2]
[422775377,1779378643000,-1592.87721992,0.00023764,2]
[422775373,1779378643000,-2000.0,0.00023659,2]
[422775362,1779378643000,-2000.0,0.00023659,2]
[422775366,1779378643000,-2000.0,0.00023659,2]
[422775364,1779378643000,-2000.0,0.00023659,2]
[422775368,1779378643000,-2000.0,0.00023659,2]
[422775379,1779378643000,-467.62459969,0.00023772,2]
[422775381,1779378643000,-1672.14226639,0.00023825,30]
[422775383,1779378643000,-317.0,0.00023924,2]
[422775385,1779378643000,-1769.07842371,0.0002398,2]
[422775387,1779378643000,-2000.0,0.0002399,2]
[422775389,1779378643000,-472.46218159,0.0002399,2]
[422775393,1779378643000,-3600.0,0.00024,2]
[422775395,1779378643000,-1255.0653188,0.00024,2]
[422775391,1779378643000,-1037.95767353,0.00024,2]
[422775398,1779378643000,-2000.0,0.00024,2]
[422775410,1779378643000,-176.0,0.00024,2]
[422775400,1779378643000,-2000.0,0.00024,2]
[422775402,1779378643000,-159.56856536,0.00024,2]
[422775406,1779378643000,-431.0,0.00024,2]
[422775404,1779378643000,-621.0,0.00024,2]
[422775297,1779378643000,-621.0,0.00023,2]
[422775357,1779378643000,-900.0,0.00023602,2]
[422775347,1779378643000,-900.0,0.00023602,2]
[422775412,1779378643000,-500.0,0.00024,2]
[422775338,1779378643000,-150.0,0.00023537,2]
[422775287,1779378643000,-250.0,0.00022968,2]
[422775291,1779378643000,-1309.77,0.00023,7]
[422775408,1779378643000,-481.0,0.00024,2]
[422775300,1779378643000,-431.0,0.00023,2]
[422775293,1779378643000,-1013.39395194,0.00023,2]
[422775301,1779378643000,-481.0,0.00023,2]
[422775305,1779378643000,-499.0,0.00023,2]
[422775340,1779378643000,-900.0,0.00023602,2]
[422775307,1779378643000,-200.0,0.00023,2]
[422775311,1779378643000,-929.39,0.000231,14]
[422775320,1779378643000,-24999.99,0.00023368,2]
[422775314,1779378643000,-208.13956426,0.000232,2]
[422775318,1779378643000,-2485.71796494,0.00023342,28]
[422775303,1779378643000,-176.0,0.00023,2]
[422775316,1779378643000,-1536.04360648,0.00023216,2]
[422775351,1779378643000,-900.0,0.00023602,2]
[422775322,1779378643000,-9999.99,0.00023368,2]
[422775349,1779378643000,-900.0,0.00023602,2]
[422775344,1779378643000,-900.0,0.00023602,2]
[422775337,1779378643000,-1170.76286232,0.000235,2]
[422775334,1779378643000,-908.0,0.00023454,5]
[422775342,1779378643000,-900.0,0.00023602,2]
[422775331,1779378643000,-17967.48,0.000234,2]
[422775329,1779378643000,-1000.0,0.00023368,2]
[422775324,1779378643000,-299.99,0.00023368,7]
[422775326,1779378643000,-6223.25,0.00023368,2]
[422775310,1779378643000,-1177.0,0.00023,2]
[422775333,1779378643000,-647.0,0.000234,2]
[422775492,1779378644000,-202.659345,0.00024658,2]
[422775503,1779378644000,-202.659345,0.00024658,2]
[422775505,1779378644000,-202.659345,0.00024658,2]
[422775498,1779378644000,-202.659345,0.00024658,2]
[422775494,1779378644000,-202.659345,0.00024658,2]
[422775470,1779378644000,-202.659345,0.00024658,2]
[422775489,1779378644000,-202.659345,0.00024658,2]
[422775487,1779378644000,-202.659345,0.00024658,2]
[422775474,1779378644000,-202.659345,0.00024658,2]
[422775472,1779378644000,-202.659345,0.00024658,2]
[422775496,1779378644000,-202.659345,0.00024658,2]
[422775501,1779378644000,-202.659345,0.00024658,2]
[422775544,1779378644000,-151.0,0.00024658,2]
[422775511,1779378644000,-202.659341,0.00024658,2]
[422775509,1779378644000,-202.659345,0.00024658,2]
[422775514,1779378644000,-151.0,0.00024658,2]
[422775517,1779378644000,-151.0,0.00024658,2]
[422775520,1779378644000,-151.0,0.00024658,2]
[422775530,1779378644000,-151.0,0.00024658,2]
[422775524,1779378644000,-151.0,0.00024658,2]
[422775535,1779378644000,-151.0,0.00024658,2]
[422775538,1779378644000,-151.0,0.00024658,2]
[422775527,1779378644000,-151.0,0.00024658,2]
[422775541,1779378644000,-151.0,0.00024658,2]
[422775483,1779378644000,-202.659345,0.00024658,2]
[422775507,1779378644000,-202.659345,0.00024658,2]
[422775485,1779378644000,-202.659345,0.00024658,2]
[422775455,1779378644000,-1651.81367706,0.00024312,2]
[422775479,1779378644000,-202.659345,0.00024658,2]
[422775547,1779378644000,-151.0,0.00024658,2]
[422775426,1779378644000,-2000.0,0.000242,2]
[422775430,1779378644000,-2000.0,0.0002421,2]
[422775434,1779378644000,-1354.0,0.00024298,2]
[422775414,1779378644000,-499.0,0.00024,2]
[422775417,1779378644000,-1177.0,0.00024,2]
[422775432,1779378644000,-3444.596721,0.0002422,2]
[422775423,1779378644000,-791.0,0.00024179,10]
[422775419,1779378644000,-2000.0,0.00024,7]
[422775421,1779378644000,-278.94,0.0002411,2]
[422775436,1779378644000,-3545.0,0.00024298,2]
[422775438,1779378644000,-625.0,0.00024298,2]
[422775468,1779378644000,-163.64,0.00024658,8]
[422775453,1779378644000,-721.12765534,0.00024311,2]
[422775459,1779378644000,-200.0,0.00024548,2]
[422775457,1779378644000,-3193.7,0.00024324,2]
[422775447,1779378644000,-17967.48,0.000243,2]
[422775461,1779378644000,-169.89,0.00024566,2]
[422775443,1779378644000,-418.0,0.00024298,2]
[422775445,1779378644000,-3634.0,0.00024298,2]
[422775450,1779378644000,-599.60298507,0.00024311,2]
[422775449,1779378644000,-647.0,0.000243,2]
[422775463,1779378644000,-5530.0,0.000246,3]
[422775466,1779378644000,-2763.4643687,0.00024638,33]
[422775477,1779378644000,-202.659345,0.00024658,2]
[422775481,1779378644000,-202.659345,0.00024658,2]
[422775440,1779378644000,-1219.497,0.00024298,2]
[422775550,1779378644000,-151.0,0.00024658,2]
[422775428,1779378644000,-3755.92895116,0.0002421,2]
[422775566,1779378644000,-151.0,0.00024658,2]
[422775621,1779378644000,-4857.65460199,0.00025,2]
[422775625,1779378644000,-1525068.09183777,0.00025,2]
[422775627,1779378644000,-958.0,0.00025,5]
[422775623,1779378644000,-150.0,0.00025,2]
[422775632,1779378644000,-434.45737762,0.00025,2]
[422775634,1779378644000,-485.96191023,0.00025,2]
[422775637,1779378644000,-176.43781764,0.00025,2]
[422775649,1779378644000,-200.0,0.00025346,2]
[422775647,1779378644000,-1309.77,0.000252,7]
[422775654,1779378644000,-1776.30922209,0.00025408,2]
[422775651,1779378644000,-1799.60541153,0.00025362,34]
[422775641,1779378644000,-502.68726952,0.00025,2]
[422775630,1779378644000,-629.27091604,0.00025,2]
[422775639,1779378644000,-215.23956962,0.00025,7]
[422775643,1779378644000,-200.0,0.00025,2]
[422775656,1779378644000,-388.0,0.00025499,10]
[422775658,1779378644000,-317.0,0.00025499,10]
[422775660,1779378644000,-5530.0,0.000255,5]
[422775663,1779378644000,-206.65,0.0002584,2]
[422775674,1779378644000,-2000.0,0.00026,7]
[422775678,1779378644000,-264.00024771,0.000261,2]
[422775676,1779378644000,-180.0,0.00026015,2]
[422775665,1779378644000,-3274.77771894,0.00025934,38]
[422775680,1779378644000,-657.0,0.000261,2]
[422775669,1779378644000,-150.0,0.00025968,2]
[422775667,1779378644000,-1842.0326633,0.00025956,2]
[422775645,1779378644000,-1183.27901125,0.00025,2]
[422775619,1779378644000,-169.65143633,0.00025,2]
[422775672,1779378644000,-550.0,0.00026,2]
[422775614,1779378644000,-6482.9741656,0.00025,7]
[422775617,1779378644000,-2231.10537802,0.00025,2]
[422775556,1779378644000,-190.610678,0.00024658,2]
[422775558,1779378644000,-151.0,0.00024658,2]
[422775568,1779378644000,-151.0,0.00024658,2]
[422775570,1779378644000,-151.0,0.00024658,2]
[422775560,1779378644000,-151.0,0.00024658,2]
[422775564,1779378644000,-151.0,0.00024658,2]
[422775575,1779378644000,-151.0,0.00024658,2]
[422775573,1779378644000,-151.0,0.00024658,2]
[422775562,1779378644000,-151.0,0.00024658,2]
[422775577,1779378644000,-151.0,0.00024658,2]
[422775579,1779378644000,-190.746324,0.00024658,2]